bitfinex-derivatives/quotes_BNBF0:USTF0_20250708
["timestamp","ask_amount","ask_price","bid_price","bid_amount"]
[1752003569140,1.69411694,660.74,660.19,1.817]
[1752003571142,1.69411694,660.73,660.19,1.817]
[1752003571344,1.69411694,660.74,660.19,1.817]
[1752003571542,1.69411694,660.73,660.19,1.817]
[1752003574443,1.69411694,660.72,660.19,1.817]
[1752003574647,1.69469283,660.72,660.19,1.817]
[1752003575648,1.69469283,660.75,660.19,1.817]
[1752003576158,1.69469283,660.74,660.19,1.817]
[1752003576551,1.69469283,660.72,660.19,1.817]
[1752003577149,2.26025636,660.85,660.19,1.817]
[1752003577348,1.69507078,660.72,660.19,1.817]
[1752003578152,1.69507078,660.71,660.19,1.817]
[1752003578953,1.69507078,660.72,660.19,1.817]
[1752003579153,1.69507078,660.71,660.19,1.817]
[1752003579653,1.69507078,660.69,660.19,1.817]
[1752003579851,1.69507078,660.68,660.19,1.817]
[1752003580054,1.69507078,660.67,660.19,1.817]
[1752003580252,2.26025636,660.82,660.19,1.817]
[1752003580551,1.69472862,660.64,660.19,1.817]
[1752003581155,1.69472862,660.65,660.19,1.817]
[1752003581654,1.69472862,660.64,660.19,1.817]
[1752003582551,1.69472862,660.63,660.19,1.817]
[1752003584255,1.69472862,660.64,660.19,1.817]
[1752003585156,3.39038455,660.95,660.19,1.817]
[1752003585157,1.69472862,660.65,660.19,1.817]
[1752003588254,1.69472862,660.66,660.19,1.817]
[1752003590059,1.69472862,660.64,660.19,1.817]
[1752003591465,1.69472862,660.63,660.19,1.817]
[1752003597572,1.69472862,660.64,660.19,1.817]
[1752003597969,1.69472862,660.63,660.19,1.817]
[1752003598170,1.69472862,660.64,660.19,1.817]
[1752003599271,1.69472862,660.63,660.19,1.817]
[1752003600575,1.69472862,660.62,660.19,1.817]
[1752003604374,1.69472862,660.63,660.19,1.817]
[1752003609176,1.69472862,660.64,660.19,1.817]
[1752003614377,1.69472862,660.63,660.19,1.817]
[1752003618985,1.69472862,660.63,660.16,0.26342582]
[1752003619185,1.69472862,660.62,660.16,0.26342582]
[1752003620185,1.69472862,660.63,660.16,0.26342582]
[1752003621290,1.69472862,660.62,660.16,0.26342582]
[1752003621992,1.69472862,660.62,660.17,2.181]
[1752003624890,1.69472862,660.61,660.17,2.181]
[1752003625393,1.69472862,660.6,660.17,2.181]
[1752003626194,1.69472862,660.61,660.17,2.181]
[1752003626489,1.69472862,660.6,660.17,2.181]
[1752003630092,1.69472862,660.59,660.17,2.181]
[1752003633199,1.69472862,660.58,660.17,2.181]
[1752003634193,1.69472862,660.57,660.17,2.181]
[1752003635994,1.69472862,660.56,660.17,2.181]
[1752003636196,1.69472862,660.55,660.17,2.181]
[1752003636599,1.69472862,660.56,660.17,2.181]
[1752003637199,1.69472862,660.55,660.17,2.181]
[1752003637396,1.69472862,660.56,660.17,2.181]
[1752003637699,1.69472862,660.55,660.17,2.181]
[1752003637996,1.69472862,660.56,660.17,2.181]
[1752003638199,1.69472862,660.54,660.17,2.181]
[1752003638901,1.69472862,660.58,660.17,2.181]
[1752003639101,1.69472862,660.6,660.17,2.181]
[1752003639398,1.69472862,660.58,660.17,2.181]
[1752003640103,1.69472862,660.62,660.17,2.181]
[1752003640501,1.69472862,660.68,660.17,2.181]
[1752003641504,1.69472862,660.69,660.17,2.181]
[1752003642304,1.69472862,660.7,660.17,2.181]
[1752003643907,1.69472862,660.71,660.17,2.181]
[1752003644203,1.69472862,660.71,660.16,0.26342582]
[1752003646207,1.69472862,660.72,660.16,0.26342582]
[1752003646506,1.69472862,660.71,660.16,0.26342582]
[1752003647603,1.69472862,660.71,660.17,2.218]
[1752003647907,1.69472862,660.75,660.17,2.218]
[1752003649004,1.69472862,660.74,660.17,2.218]
[1752003649210,1.69472862,660.71,660.17,2.218]
[1752003649410,1.69472862,660.72,660.17,2.218]
[1752003650209,1.69472862,660.7,660.17,2.218]
[1752003651203,1.69472862,660.69,660.17,2.218]
[1752003651409,1.69472862,660.7,660.17,2.218]
[1752003654212,1.69472862,660.71,660.17,2.218]
[1752003654913,1.69472862,660.82,660.17,2.218]
[1752003658214,1.69472862,660.83,660.17,2.218]
[1752003664718,1.69472862,660.77,660.17,2.218]
[1752003671124,1.69472862,660.78,660.17,2.218]
[1752003672625,1.69472862,660.76,660.17,2.218]
[1752003676124,1.69472862,660.8,660.17,2.218]
[1752003680229,0.26326839,661.4,660.17,2.218]
[1752003680230,1.69472862,660.81,660.17,2.218]
[1752003682432,3.39038455,661.14,660.17,2.218]
[1752003682433,1.69472862,660.77,660.17,2.218]
[1752003686033,1.69472862,660.75,660.17,2.218]
[1752003687337,1.69472862,660.74,660.17,2.218]
[1752003688641,1.69472862,660.72,660.17,2.218]
[1752003688840,1.69472862,660.73,660.17,2.218]
[1752003690241,1.69297358,660.73,660.17,2.218]
[1752003691340,1.69297358,660.72,660.17,2.218]
[1752003693542,1.69297358,660.71,660.17,2.218]
[1752003695444,1.69297358,660.7,660.17,2.218]
[1752003695645,1.69297358,660.7,660.16,0.26342582]
[1752003696340,1.69297358,660.69,660.16,0.26342582]
[1752003697340,1.69297358,660.69,660.16,2.52885219]
[1752003698440,1.69297358,660.68,660.16,2.52885219]
[1752003698645,1.69297358,660.67,660.18,2.26542637]
[1752003699245,1.69297358,660.68,660.19,2.26542637]
[1752003699445,1.69297358,660.67,660.2,2.26542637]
[1752003700144,1.69297358,660.74,660.17,1.671]
[1752003700449,1.69297358,660.73,660.17,1.671]
[1752003704545,1.69297358,660.72,660.17,1.671]
[1752003707149,1.69297358,660.73,660.17,1.671]
[1752003707945,1.69297358,660.72,660.17,1.671]
[1752003709245,1.69297358,660.71,660.17,1.671]
[1752003709949,1.69297358,660.65,660.19,2.26542637]
[1752003713153,2.26025636,660.77,660.19,2.26542637]
[1752003713450,1.69678068,660.65,660.19,2.26542637]
[1752003713853,1.69679176,660.65,660.19,2.26542637]
[1752003714756,1.69679176,660.7,660.17,1.671]
[1752003720252,1.69679176,660.71,660.17,1.671]
[1752003722457,1.69679176,660.69,660.17,1.671]
[1752003724659,1.69679176,660.66,660.17,3.93642637]
[1752003729972,1.69679176,660.66,660.18,2.26542637]
[1752003730173,1.69679176,660.64,660.21,2.26542637]
[1752003730972,1.69679176,660.65,660.2,2.26542637]
[1752003731777,1.69679176,660.64,660.2,2.26542637]
[1752003732372,1.69679176,660.64,660.21,2.26542637]
[1752003734576,1.69679176,660.64,660.2,2.26542637]
[1752003736375,1.69679176,660.66,660.17,3.93642637]
[1752003738281,1.69679176,660.65,660.19,2.26542637]
[1752003738581,1.69679176,660.65,660.2,2.26542637]
[1752003739382,1.69679176,660.65,660.19,2.26542637]
[1752003739682,1.69679176,660.66,660.17,3.93642637]
[1752003741982,1.69679176,660.65,660.18,2.26542637]
[1752003743881,1.69679176,660.66,660.17,1.671]
[1752003746285,1.69679176,660.65,660.18,2.26542637]
[1752003748380,1.69679176,660.65,660.17,3.93642637]
[1752003748781,1.69679176,660.66,660.17,1.671]
[1752003749181,1.69679176,660.69,660.2,2.26542637]
[1752003749484,1.69679176,660.68,660.21,2.26542637]
[1752003750684,1.69679176,660.68,660.22,2.26542637]
[1752003751279,2.26025636,660.8,660.22,2.26542637]
[1752003751482,1.01500553,660.9,660.17,1.671]
[1752003751688,1.01500553,661.11,660.17,1.671]
[1752003751884,1.69700765,660.68,660.22,2.26979001]
[1752003753692,1.69700765,660.67,660.22,2.26979001]
[1752003753987,1.69700765,660.67,660.24,2.26979001]
[1752003754588,1.69700765,660.69,660.2,2.26979001]
[1752003758397,1.69700765,660.69,660.21,2.26979001]
[1752003758893,1.69700765,660.68,660.22,2.26979001]
[1752003759297,1.69700765,660.65,660.19,2.26979001]
[1752003760594,2.26267687,660.76,660.19,2.26979001]
[1752003760799,1.69704673,660.65,660.19,2.26979001]
[1752003761399,1.69704673,660.65,660.2,2.191]
[1752003764599,0.26339891,661.12,660.21,2.26979001]
[1752003764600,1.69704673,660.64,660.21,2.26979001]
[1752003767903,1.69704673,660.65,660.2,2.191]
[1752003773811,1.69704673,660.65,660.2,4.46079001]
[1752003774713,1.69704673,660.66,660.2,2.191]
[1752003775412,1.69704673,660.66,660.16,2.53321583]
[1752003776410,1.69703977,660.66,660.16,2.53321583]
[1752003777609,1.69703977,660.66,660.17,2.26979001]
[1752003778113,1.69703977,660.65,660.18,2.26979001]
[1752003778410,0.26339891,661.12,660.18,2.26979001]
[1752003778411,1.69703977,660.66,660.18,4.45679001]
[1752003784617,1.69703977,660.65,660.2,2.26979001]
[1752003785121,1.69703977,660.64,660.22,2.26979001]
[1752003785321,1.69703977,660.66,660.18,4.45679001]
[1752003785617,1.69703977,660.66,660.19,2.26979001]
[1752003786523,1.69703,660.66,660.19,2.26979001]
[1752003786721,1.69703,660.65,660.19,2.26979001]
[1752003788226,1.69703,660.65,660.2,2.26979001]
[1752003789123,1.69703,660.68,660.23,2.26979001]
[1752003789422,3.39401531,660.91,660.18,2.187]
[1752003789423,1.69703,660.71,660.18,2.187]
[1752003789628,1.69703,660.67,660.18,2.187]
[1752003790130,1.69703,660.68,660.18,2.187]
[1752003790728,1.69703,660.63,660.18,2.187]
[1752003791027,1.69703,660.61,660.18,2.187]
[1752003791226,1.69703,660.62,660.18,2.187]
[1752003792128,1.69703,660.63,660.18,2.187]
[1752003795129,1.69703,660.64,660.18,2.187]
[1752003795931,1.69703,660.63,660.18,2.187]
[1752003796236,1.69703,660.64,660.18,2.187]
[1752003796437,1.69703,660.63,660.18,2.187]
[1752003797129,2.26267687,660.76,660.18,2.187]
[1752003797130,1.69703,660.64,660.18,2.187]
[1752003798131,1.69703,660.64,660.21,0.26342582]
[1752003799338,1.69703,660.61,660.21,0.26342582]
[1752003800438,1.69703,660.6,660.21,0.26342582]
[1752003802339,1.69703,660.61,660.21,0.26342582]
[1752003806237,1.69703,660.62,660.21,0.26342582]
[1752003811441,1.69703,660.63,660.21,0.26342582]
[1752003812544,1.69703,660.62,660.21,0.26342582]
[1752003816345,1.69703,660.63,660.21,0.26342582]
[1752003817445,1.69703,660.64,660.21,0.26342582]
[1752003817845,1.69703,660.64,660.22,2.357]
[1752003826153,1.69703,660.63,660.22,2.357]
[1752003827159,1.69703,660.62,660.22,2.357]
[1752003831560,1.69703,660.63,660.22,2.357]
[1752003831762,1.69703,660.66,660.22,2.357]
[1752003832265,1.69703,660.65,660.22,2.357]
[1752003833467,1.69703,660.66,660.22,2.357]
[1752003841377,1.69703,660.65,660.22,2.357]
[1752003841676,1.69703,660.66,660.22,2.357]
[1752003842276,1.69703,660.67,660.22,2.357]
[1752003843980,1.69703,660.76,660.22,2.357]
[1752003844180,1.69703,660.75,660.22,2.357]
[1752003844380,1.69703,660.86,660.22,2.357]
[1752003844881,1.69703,660.86,660.21,0.26342582]
[1752003846482,1.69703,660.87,660.21,0.26342582]
[1752003848279,1.69703,660.88,660.22,2.024]
[1752003850180,1.69703,660.89,660.22,2.024]
[1752003853086,1.69703,660.88,660.22,2.024]
[1752003853287,1.69703,660.89,660.22,2.024]
[1752003853890,1.69703,660.82,660.22,2.024]
[1752003854088,1.69703,660.81,660.22,2.024]
[1752003854384,1.69703,660.82,660.22,2.024]
[1752003855286,1.69703,660.8,660.22,2.024]
[1752003856391,1.69703,660.81,660.22,2.024]
[1752003861094,1.69703,660.82,660.22,2.024]
[1752003862092,1.69703,660.81,660.22,2.024]
[1752003862294,1.69703,660.81,660.21,0.26342582]
[1752003863393,1.69703,660.82,660.21,0.26342582]
[1752003864890,1.69703,660.82,660.22,1.796]
[1752003877099,2.26267687,660.93,660.22,1.796]
[1752003877300,1.69168508,660.82,660.22,1.796]
[1752003879400,1.69168508,660.83,660.22,1.796]
[1752003879597,1.69168508,660.84,660.22,1.796]
[1752003879898,1.69168508,660.84,660.21,0.26342582]
[1752003881099,1.69168508,660.83,660.21,0.26342582]
[1752003882598,1.69168508,660.83,660.22,2.305]
[1752003883001,2.26267687,660.95,660.22,2.305]
[1752003883297,1.69202467,660.83,660.22,2.305]
[1752003886198,1.69202467,660.82,660.22,2.305]
[1752003886500,1.69202467,660.83,660.22,2.305]
[1752003887103,1.69202467,660.82,660.22,2.305]
[1752003888402,1.69202467,660.81,660.22,2.305]
[1752003888805,1.69280126,660.81,660.22,2.305]
[1752003889303,0.26339891,661.12,660.22,2.305]
[1752003889304,1.69280126,660.8,660.22,2.305]
[1752003889504,1.69280126,660.79,660.22,2.305]
[1752003893104,1.69280126,660.78,660.22,4.57479001]
[1752003895312,1.69280126,660.77,660.23,2.26979001]
[1752003897311,1.69280126,660.76,660.23,2.26979001]
[1752003898207,1.69280126,660.76,660.24,2.26979001]
[1752003899213,1.69280126,660.75,660.24,2.26979001]
[1752003899411,1.69280126,660.75,660.25,2.26979001]
[1752003902213,1.69280126,660.74,660.26,2.26979001]
[1752003903213,1.69280126,660.73,660.27,2.26979001]
[1752003904314,1.69280126,660.71,660.29,2.26979001]
[1752003911018,1.69280126,660.72,660.29,2.26979001]
[1752003913421,1.69280126,660.71,660.29,2.26979001]
[1752003915027,1.69280126,660.72,660.28,2.26979001]
[1752003916227,1.69280126,660.73,660.24,2.26979001]
[1752003916629,1.69280126,660.69,660.22,2.305]
[1752003917226,1.69280126,660.7,660.22,2.305]
[1752003920329,1.69280126,660.71,660.22,2.305]
[1752003925737,1.69280126,660.71,660.21,0.26342582]
[1752003926033,1.69280126,660.7,660.23,2.26979001]
[1752003929239,1.69280126,660.7,660.24,2.261]
[1752003929439,1.69280126,660.73,660.26,2.26979001]
[1752003932035,1.69280126,660.74,660.26,2.26979001]
[1752003932540,1.69280126,660.74,660.27,2.26979001]
[1752003934441,1.69280126,660.75,660.25,2.26979001]
[1752003936942,1.69280126,660.76,660.24,2.261]
[1752003939447,1.69280126,660.73,660.24,2.261]
[1752003940342,1.69280126,660.73,660.21,0.26342582]
[1752003943245,1.69280126,660.75,660.21,0.26342582]
[1752003944147,1.69280126,660.75,660.22,2.429]
[1752003944447,1.69280126,660.73,660.22,2.429]
[1752003947452,1.69280126,660.72,660.22,2.429]
[1752003953259,1.69280126,660.7,660.23,2.26979001]
[1752003954160,1.69280126,660.72,660.25,2.26979001]
[1752003956361,1.69280126,660.72,660.24,2.26979001]
[1752003956559,1.69280126,660.72,660.25,2.26979001]
[1752003961565,1.69280126,660.72,660.24,2.26979001]
[1752003962067,1.69280126,660.72,660.25,2.26979001]
[1752003969273,1.69280126,660.71,660.25,2.26979001]
[1752003976588,1.69280126,660.73,660.22,2.429]
[1752003976788,2.26267687,660.85,660.22,2.429]
[1752003976789,1.69280126,660.74,660.22,2.429]
[1752003977585,1.69280126,660.73,660.22,2.429]
[1752003978384,1.69280126,660.72,660.22,2.429]
[1752003979382,1.69280126,660.75,660.22,2.429]
[1752003980185,1.69280126,660.74,660.22,2.429]
[1752003980489,1.69280126,660.75,660.22,2.429]
[1752003986487,1.69280126,660.74,660.22,4.69879001]
[1752003986790,1.69280126,660.71,660.25,2.26979001]
[1752003988092,1.69280126,660.71,660.26,2.26979001]
[1752003988595,1.69280126,660.71,660.25,2.26979001]
[1752003989297,1.69280126,660.68,660.22,4.69879001]
[1752003990191,1.69280126,660.68,660.23,2.26979001]
[1752003990394,1.69280126,660.69,660.23,2.26979001]
[1752003993000,1.69280126,660.68,660.23,2.26979001]
[1752003994501,1.69280126,660.69,660.22,4.69879001]
[1752003995299,1.69280126,660.68,660.23,2.26979001]
[1752003997103,1.69280126,660.69,660.23,2.26979001]
[1752003998299,1.69280126,660.69,660.26,0.26339392]
[1752003999000,1.69280126,660.68,660.26,0.26339392]
[1752003999404,1.69280126,660.69,660.26,0.26339392]
[1752004007607,1.69280126,660.69,660.27,1.793]
[1752004008713,1.69280126,660.68,660.27,1.793]
[1752004010609,1.69280126,660.7,660.27,1.793]
[1752004016415,2.26267687,660.82,660.27,1.793]
[1752004016616,1.69660953,660.7,660.27,1.793]
[1752004017010,1.69660953,660.69,660.27,1.793]
[1752004019313,1.69660953,660.7,660.27,1.793]
[1752004020517,1.69660953,660.69,660.27,1.793]
[1752004022213,1.6965676,660.68,660.27,1.793]
[1752004023915,1.6965676,660.66,660.27,1.793]
[1752004025120,1.6965676,660.65,660.27,1.793]
[1752004025421,1.6965676,660.66,660.27,1.793]
[1752004028123,1.69614301,660.66,660.27,1.793]
[1752004029321,1.69614301,660.65,660.27,1.793]
[1752004030324,1.69614301,660.66,660.27,1.793]
[1752004030620,1.69614301,660.65,660.27,1.793]
[1752004030924,1.69614301,660.66,660.27,1.793]
[1752004033724,1.69614301,660.65,660.27,1.793]
[1752004034027,1.69614301,660.66,660.27,1.793]
[1752004037229,1.69614301,660.69,660.27,1.793]
[1752004038033,1.69614301,660.73,660.27,1.793]
[1752004038931,1.69614301,660.74,660.27,1.793]
[1752004039535,1.69614301,660.75,660.27,1.793]
[1752004042836,1.69614301,660.76,660.27,1.793]
[1752004046435,1.69614301,660.74,660.27,1.793]
[1752004047437,1.69614301,660.73,660.27,1.793]
[1752004053842,1.69614301,660.74,660.27,1.793]
[1752004056539,1.69614301,660.76,660.27,1.793]
[1752004057544,1.69614301,660.77,660.27,1.793]
[1752004061741,1.69614301,660.77,660.26,0.26339392]
[1752004064342,1.69614301,660.77,660.27,2.653]
[1752004066341,0.26339891,661.12,660.27,2.653]
[1752004066342,1.69614301,660.75,660.27,2.653]
[1752004069649,1.69614301,660.76,660.27,2.653]
[1752004072851,1.69614301,660.79,660.27,2.653]
[1752004077850,1.69614301,660.8,660.27,2.653]
[1752004079350,1.69614301,660.79,660.27,2.653]
[1752004082651,1.69614301,660.78,660.27,2.653]
[1752004083851,1.69614301,660.79,660.27,2.653]
[1752004086355,1.69614301,660.78,660.27,2.653]
[1752004087457,1.69614301,660.78,660.26,0.26339392]
[1752004088553,1.69614301,660.78,660.26,2.53318393]
[1752004088759,1.69614301,660.79,660.26,0.26339392]
[1752004089655,1.69614301,660.83,660.26,2.53318393]
[1752004090154,1.69614301,660.88,660.31,2.26979001]
[1752004090758,1.69614301,660.88,660.32,2.566]
[1752004091458,1.69614301,660.94,660.34,2.26979001]
[1752004091854,1.69614301,660.94,660.32,2.566]
[1752004091855,1.69614301,660.93,660.36,2.26979001]
[1752004092057,1.69614301,660.93,660.37,2.26979001]
[1752004092258,1.69614301,660.94,660.36,2.26979001]
[1752004092757,1.69614301,660.96,660.38,2.26979001]
[1752004092955,1.69614301,660.96,660.37,2.26979001]
[1752004093157,1.69614301,660.98,660.37,2.26979001]
[1752004093354,1.69614301,660.99,660.39,2.26979001]
[1752004094156,1.69614301,661.0,660.38,2.26979001]
[1752004095160,1.69614301,661.01,660.37,2.26979001]
[1752004095361,1.69614301,661.01,660.38,2.26979001]
[1752004096057,1.69614301,661.02,660.37,2.26979001]
[1752004097161,1.69614301,661.02,660.36,2.26979001]
[1752004098162,1.69614301,661.03,660.36,2.26979001]
[1752004099064,1.69614301,661.03,660.35,2.26979001]
[1752004099861,1.69614301,661.03,660.36,2.26979001]
[1752004100264,1.69614301,661.04,660.35,2.26979001]
[1752004101066,1.69614301,661.04,660.34,2.26979001]
[1752004101266,1.69614301,661.03,660.38,2.26979001]
[1752004102263,1.69614301,661.03,660.37,2.26979001]
[1752004103169,1.69614301,661.04,660.37,2.26979001]
[1752004103966,1.69614301,661.05,660.33,2.26979001]
[1752004104268,1.69614301,661.06,660.33,2.26979001]
[1752004105271,1.69614301,661.05,660.33,2.26979001]
[1752004106167,1.69614301,661.06,660.33,2.26979001]
[1752004107273,1.69614301,661.06,660.32,4.83579001]
[1752004109275,1.69614301,661.06,660.32,2.566]
[1752004113981,1.69614301,661.05,660.34,2.26979001]
[1752004114178,1.69614301,661.05,660.33,2.26979001]
[1752004119581,1.69614301,661.06,660.34,2.26979001]
[1752004122285,1.69614301,661.06,660.35,2.26979001]
[1752004127388,1.69614301,661.06,660.36,2.26979001]
[1752004127886,1.69614301,661.07,660.33,2.26979001]
[1752004128086,1.69614301,661.09,660.32,2.566]
[1752004129387,1.69614301,661.07,660.32,2.566]
[1752004136296,1.69614301,661.06,660.32,2.566]
[1752004137699,1.69614301,661.05,660.33,2.26979001]
[1752004137994,1.69614301,661.05,660.34,2.26979001]
[1752004138198,1.69614301,661.04,660.34,2.26979001]
[1752004139497,1.69614301,661.04,660.35,2.26979001]
[1752004141499,1.69614301,661.03,660.35,2.26979001]
[1752004141703,1.69614301,661.04,660.35,2.26979001]
[1752004142100,1.69614301,661.03,660.35,2.26979001]
[1752004142303,1.69614301,661.03,660.36,2.26979001]
[1752004143105,1.69614301,661.02,660.37,2.26979001]
[1752004144807,1.69614301,661.0,660.41,2.26979001]
[1752004145306,1.69614301,661.0,660.42,4.08879001]
[1752004146210,1.69614301,660.99,660.43,2.26979001]
[1752004147012,1.69614301,661.03,660.47,2.26979001]
[1752004147210,1.69614301,661.02,660.48,2.26979001]
[1752004147407,1.69614301,661.03,660.48,2.26979001]
[1752004148110,1.69614301,661.02,660.49,2.26979001]
[1752004149213,1.69614301,661.01,660.49,2.26979001]
[1752004149514,1.69614301,661.02,660.49,2.26979001]
[1752004150110,1.69614301,661.0,660.5,2.26979001]
[1752004150408,1.69614301,661.01,660.49,2.26979001]
[1752004150813,1.69614301,661.05,660.53,2.26979001]
[1752004151313,1.69614301,661.05,660.54,2.26979001]
[1752004152010,1.69614301,661.13,660.58,2.26979001]
[1752004152210,1.69614301,661.13,660.59,2.26979001]
[1752004152510,1.69614301,661.14,660.57,2.26979001]
[1752004153015,1.69614301,661.15,660.57,2.26979001]
[1752004153312,1.69614301,661.16,660.56,2.26979001]
[1752004154213,1.69614301,661.15,660.58,2.26979001]
[1752004154410,1.69614301,661.16,660.58,2.26979001]
[1752004155210,1.69614301,661.16,660.57,2.26979001]
[1752004156512,1.69614301,661.17,660.56,2.26979001]
[1752004157316,1.69614301,661.17,660.55,2.26979001]
[1752004158417,1.69614301,661.21,660.49,2.26979001]
[1752004158720,1.69614301,661.21,660.48,2.26979001]
[1752004159616,1.69614301,661.22,660.49,2.26979001]
[1752004160321,1.69614301,661.23,660.48,2.26979001]
[1752004160617,1.69614301,661.22,660.49,2.26979001]
[1752004161523,1.69614301,661.23,660.49,2.26979001]
[1752004164328,1.69614301,661.24,660.49,2.26979001]
[1752004166326,1.69614301,661.25,660.49,2.26979001]
[1752004168230,1.69614301,661.23,660.54,2.26979001]
[1752004168424,1.69614301,661.23,660.55,2.26979001]
[1752004168628,1.69614301,661.22,660.56,2.26979001]
[1752004169331,1.69614301,661.23,660.56,2.26979001]
[1752004169529,1.69614301,661.21,660.54,2.26979001]
[1752004169727,1.69614301,661.21,660.55,2.26979001]
[1752004170030,1.69614301,661.21,660.56,2.26979001]
[1752004170427,1.69614301,661.21,660.55,2.26979001]
[1752004170932,1.69614301,661.21,660.56,2.26979001]
[1752004171133,1.69614301,661.23,660.52,2.26979001]
[1752004171329,1.69614301,661.23,660.51,2.26979001]
[1752004171533,1.69614301,661.25,660.49,2.26979001]
[1752004172029,1.69614301,661.32,660.56,2.26979001]
[1752004172433,1.69614301,661.32,660.55,2.26979001]
[1752004173535,1.69614301,661.33,660.55,2.26979001]
[1752004174333,1.69614301,661.33,660.54,2.26979001]
[1752004174935,1.69614301,661.33,660.53,2.26979001]
[1752004176337,1.69614301,661.33,660.52,2.26979001]
[1752004177338,1.69614301,661.35,660.48,2.26979001]
[1752004178035,0.26319372,661.7,660.26,0.26339392]
[1752004178036,1.69614301,661.34,660.49,2.26979001]
[1752004179342,1.69614301,661.35,660.49,2.26979001]
[1752004180340,1.69614301,661.35,660.48,2.26979001]
[1752004180539,1.69614301,661.35,660.5,2.043]
[1752004181041,1.69614301,661.34,660.5,2.043]
[1752004181342,1.69614301,661.33,660.5,2.043]
[1752004181845,1.69614301,661.33,660.5,4.31279001]
[1752004183445,1.69614301,661.33,660.5,2.043]
[1752004183748,1.69614301,661.33,660.5,4.31279001]
[1752004184047,1.69614301,661.34,660.5,4.31279001]
[1752004184948,1.69614301,661.34,660.5,2.043]
[1752004185548,1.69614301,661.32,660.53,2.26979001]
[1752004185947,1.69614301,661.32,660.52,2.26979001]
[1752004186251,1.69614301,661.32,660.53,2.26979001]
[1752004186449,1.69614301,661.32,660.52,2.26979001]
[1752004186751,1.69614301,661.33,660.5,2.043]
[1752004188552,1.69614301,661.31,660.5,2.043]
[1752004189150,1.69614301,661.3,660.5,2.043]
[1752004189552,2.26267687,661.44,660.5,2.043]
[1752004189849,1.69145004,661.31,660.5,2.043]
[1752004190452,1.69145004,661.3,660.5,2.043]
[1752004192854,1.69145004,661.29,660.5,2.043]
[1752004193354,1.69145004,661.29,660.5,4.31279001]
[1752004193958,1.69145004,661.27,660.5,2.043]
[1752004195454,1.69215158,661.26,660.5,2.043]
[1752004196754,1.69215158,661.24,660.53,2.26979001]
[1752004197155,1.69215158,661.24,660.54,2.26979001]
[1752004199356,1.69215158,661.24,660.55,2.26979001]
[1752004199755,1.69215158,661.23,660.56,2.26979001]
[1752004200156,1.69215158,661.23,660.57,2.26979001]
[1752004201459,1.69215158,661.22,660.57,2.26979001]
[1752004202265,1.69215158,661.23,660.55,2.26979001]
[1752004202463,1.69215158,661.22,660.56,2.26979001]
[1752004203061,1.69215158,661.22,660.54,2.26979001]
[1752004203268,1.69215158,661.23,660.54,2.26979001]
[1752004204466,1.69215158,661.23,660.5,2.043]
[1752004204467,1.69215158,661.22,660.55,2.26979001]
[1752004204971,1.69215158,661.26,660.5,2.043]
[1752004205172,1.69215158,661.23,660.5,2.043]
[1752004205470,1.69215158,661.2,660.5,2.043]
[1752004206471,2.26267687,661.36,660.5,2.043]
[1752004206472,1.69215158,661.19,660.5,2.043]
[1752004207873,1.69545312,661.19,660.5,2.043]
[1752004208270,1.69545312,661.18,660.5,2.043]
[1752004208474,1.69545312,661.1,660.5,2.043]
[1752004209072,0.26319372,661.7,660.5,2.043]
[1752004209073,1.69545312,661.09,660.5,2.043]
[1752004209473,1.69545312,661.12,660.5,2.043]
[1752004210069,1.69545312,661.09,660.5,2.043]
[1752004211278,1.69545312,661.07,660.5,2.043]
[1752004211475,2.26267687,661.19,660.5,2.043]
[1752004211476,1.69545312,661.06,660.5,2.043]
[1752004211671,1.69545312,661.06,660.44,0.26321064]
[1752004212372,1.69545312,661.07,660.44,0.26321064]
[1752004213375,1.69545312,661.06,660.44,0.26321064]
[1752004214372,1.69545312,661.07,660.44,0.26321064]
[1752004215376,1.69545312,661.07,660.45,1.935]
[1752004215577,1.69545312,661.06,660.45,1.935]
[1752004216273,1.69545312,661.07,660.45,1.935]
[1752004218375,1.69545312,661.08,660.45,1.935]
[1752004219576,1.69545312,661.05,660.45,1.935]
[1752004224684,1.69175629,661.05,660.45,1.935]
[1752004229785,1.69175629,661.06,660.45,1.935]